[Event "Titled Tuesday Blitz July 25 Late 2023"]
[White "Adewumi, Tanitoluwa"]
[Black "Xiong, Jeffery"]
[WhiteFideId "30966396"]
[BlackFideId "2047640"]
[WhiteElo "2699"]
[BlackElo "2969"]
[Result "0-1"]
[Round "6"]
[TimeControl "180+2"]
[Date "2023.07.25"]
[WhiteClock "0:00:03"]
[BlackClock "0:01:06"]
[Board "21"]

1. e4 {[%clk 0:02:55]}  c6 {[%clk 0:03:00]} 2. d4 {[%clk 0:02:54]}  d5 {[%clk 0:03:00]} 3. e5 {[%clk 0:02:55]}  Bf5 {[%clk 0:03:01]} 4. Nf3 {[%clk 0:02:55]}  e6 {[%clk 0:03:01]} 5. Be2 {[%clk 0:02:56]}  Ne7 {[%clk 0:03:02]} 6. O-O {[%clk 0:02:56]}  h6 {[%clk 0:03:02]} 7. a4 {[%clk 0:02:54]}  Nd7 {[%clk 0:03:03]} 8. c3 {[%clk 0:02:55]}  Bh7 {[%clk 0:03:03]} 9. b4 {[%clk 0:02:54]}  Ng6 {[%clk 0:03:03]} 10. a5 {[%clk 0:02:53]}  Be7 {[%clk 0:03:03]} 11. Na3 {[%clk 0:02:44]}  O-O {[%clk 0:03:03]} 12. Nc2 {[%clk 0:02:43]}  f6 {[%clk 0:03:03]} 13. exf6 {[%clk 0:02:44]}  Bxf6 {[%clk 0:03:01]} 14. Re1 {[%clk 0:02:21]}  e5 {[%clk 0:02:59]} 15. dxe5 {[%clk 0:02:07]}  Ngxe5 {[%clk 0:03:00]} 16. Ncd4 {[%clk 0:02:04]}  Re8 {[%clk 0:02:48]} 17. Bf4 {[%clk 0:01:54]}  a6 {[%clk 0:02:46]} 18. Qd2 {[%clk 0:01:45]}  Be4 {[%clk 0:02:24]} 19. Rad1 {[%clk 0:01:35]}  Nxf3+ {[%clk 0:02:05]} 20. Nxf3 {[%clk 0:01:33]}  Nf8 {[%clk 0:02:02]} 21. Nd4 {[%clk 0:01:17]}  Qd7 {[%clk 0:02:02]} 22. Bh5 {[%clk 0:01:10]}  Bg6 {[%clk 0:02:02]} 23. Bf3 {[%clk 0:01:07]}  Rxe1+ {[%clk 0:01:56]} 24. Rxe1 {[%clk 0:01:07]}  Re8 {[%clk 0:01:57]} 25. h3 {[%clk 0:00:58]}  Rxe1+ {[%clk 0:01:49]} 26. Qxe1 {[%clk 0:00:58]}  Qe8 {[%clk 0:01:49]} 27. Qxe8 {[%clk 0:00:55]}  Bxe8 {[%clk 0:01:50]} 28. Kf1 {[%clk 0:00:41]}  Bd7 {[%clk 0:01:50]} 29. Ke2 {[%clk 0:00:38]}  Ne6 {[%clk 0:01:51]} 30. Be3 {[%clk 0:00:32]}  Ng5 {[%clk 0:01:32]} 31. Bg4 {[%clk 0:00:17]}  Bxg4+ {[%clk 0:01:32]} 32. hxg4 {[%clk 0:00:18]}  Kf7 {[%clk 0:01:32]} 33. Kd3 {[%clk 0:00:17]}  Bxd4 {[%clk 0:01:15]} 34. Kxd4 {[%clk 0:00:12]}  Ke6 {[%clk 0:01:15]} 35. Bxg5 {[%clk 0:00:07]}  hxg5 {[%clk 0:01:16]} 36. Kc5 {[%clk 0:00:06]}  Kd7 {[%clk 0:01:13]} 37. Kb6 {[%clk 0:00:07]}  Kc8 {[%clk 0:01:13]} 38. g3 {[%clk 0:00:06]}  Kb8 {[%clk 0:01:14]} 39. f4 {[%clk 0:00:07]}  Kc8 {[%clk 0:01:14]} 40. fxg5 {[%clk 0:00:04]}  Kb8 {[%clk 0:01:14]} 41. g6 {[%clk 0:00:04]}  Kc8 {[%clk 0:01:15]} 42. g5 {[%clk 0:00:05]}  Kb8 {[%clk 0:01:15]} 43. g4 {[%clk 0:00:06]}  Kc8 {[%clk 0:01:16]} 44. Kc5 {[%clk 0:00:06]}  Kc7 {[%clk 0:01:16]} 45. Kd4 {[%clk 0:00:03]}  Kd6 {[%clk 0:01:10]} 46. c4 {[%clk 0:00:04]}  Ke6 {[%clk 0:01:04]} 47. cxd5+ {[%clk 0:00:02]}  cxd5 {[%clk 0:01:05]} 48. Kc5 {[%clk 0:00:03]}  Ke5 {[%clk 0:01:05]} 49. Kb6 {[%clk 0:00:03]}  d4 {[%clk 0:01:06]} 50. Kxb7 {[%clk 0:00:03]}  d3 {[%clk 0:01:06]} 51. b5 {[%clk 0:00:04]}  axb5 {[%clk 0:01:05]} 52. a6 {[%clk 0:00:04]}  d2 {[%clk 0:01:05]} 53. a7 {[%clk 0:00:03]}  d1=Q {[%clk 0:01:06]} 0-1


[Site "https://www.chess.com"]

[Event "Titled Tuesday Blitz July 25 Late 2023"]
[White "Jaracz, Pawel"]
[Black "Svane, Rasmus"]
[WhiteFideId "1102222"]
[BlackFideId "4657101"]
[WhiteElo "2697"]
[BlackElo "2966"]
[Result "1-0"]
[Round "6"]
[TimeControl "180+2"]
[Date "2023.07.25"]
[WhiteClock "0:00:17"]
[BlackClock "0:00:00"]
[Board "22"]

1. e4 {[%clk 0:02:55]}  c6 {[%clk 0:02:59]} 2. d4 {[%clk 0:02:55]}  d5 {[%clk 0:03:00]} 3. e5 {[%clk 0:02:54]}  Bf5 {[%clk 0:02:59]} 4. c4 {[%clk 0:02:53]}  e6 {[%clk 0:03:00]} 5. Nc3 {[%clk 0:02:53]}  Ne7 {[%clk 0:03:00]} 6. a3 {[%clk 0:02:51]}  Nd7 {[%clk 0:03:00]} 7. cxd5 {[%clk 0:02:50]}  Nxd5 {[%clk 0:02:59]} 8. Nxd5 {[%clk 0:02:49]}  cxd5 {[%clk 0:03:00]} 9. Bd3 {[%clk 0:02:50]}  Bxd3 {[%clk 0:02:58]} 10. Qxd3 {[%clk 0:02:49]}  a6 {[%clk 0:02:50]} 11. Ne2 {[%clk 0:02:49]}  Qa5+ {[%clk 0:02:40]} 12. Nc3 {[%clk 0:02:46]}  Be7 {[%clk 0:02:19]} 13. Qg3 {[%clk 0:02:44]}  g6 {[%clk 0:02:02]} 14. Bh6 {[%clk 0:02:12]}  f5 {[%clk 0:01:54]} 15. exf6 {[%clk 0:02:09]}  Nxf6 {[%clk 0:01:52]} 16. O-O {[%clk 0:02:07]}  Kf7 {[%clk 0:01:52]} 17. Rae1 {[%clk 0:02:02]}  Rac8 {[%clk 0:01:49]} 18. Re3 {[%clk 0:01:59]}  Rhe8 {[%clk 0:01:43]} 19. Rfe1 {[%clk 0:01:52]}  Rc6 {[%clk 0:01:41]} 20. Bg5 {[%clk 0:01:51]}  Bd8 {[%clk 0:01:23]} 21. Qh4 {[%clk 0:01:39]}  Nh5 {[%clk 0:01:01]} 22. g4 {[%clk 0:01:30]}  Bxg5 {[%clk 0:01:00]} 23. Qxg5 {[%clk 0:01:30]}  Ng7 {[%clk 0:00:58]} 24. Qh6 {[%clk 0:01:01]}  Rh8 {[%clk 0:00:38]} 25. Rf3+ {[%clk 0:00:51]}  Kg8 {[%clk 0:00:38]} 26. Qf4 {[%clk 0:00:45]}  h5 {[%clk 0:00:26]} 27. Qf7+ {[%clk 0:00:45]}  Kh7 {[%clk 0:00:26]} 28. Rf6 {[%clk 0:00:44]}  Qc7 {[%clk 0:00:20]} 29. Qxg6+ {[%clk 0:00:44]}  Kg8 {[%clk 0:00:20]} 30. Nxd5 {[%clk 0:00:44]}  Qd7 {[%clk 0:00:12]} 31. Nf4 {[%clk 0:00:22]}  Qe8 {[%clk 0:00:11]} 32. Qg5 {[%clk 0:00:21]}  hxg4 {[%clk 0:00:04]} 33. d5 {[%clk 0:00:19]}  Rc5 {[%clk 0:00:02]} 34. Nxe6 {[%clk 0:00:19]}  Rh7 {[%clk 0:00:02]} 35. Re3 {[%clk 0:00:17]}  Rc1+ {[%clk 0:00:00]} 36. Kg2 {[%clk 0:00:17]} 1-0


[Site "https://www.chess.com"]

[Event "Titled Tuesday Blitz July 25 Late 2023"]
[White "Fressinet, Laurent"]
[Black "Czernek, Tymon"]
[WhiteFideId "608742"]
[BlackFideId "1199510"]
[WhiteElo "2885"]
[BlackElo "2652"]
[Result "1-0"]
[Round "6"]
[TimeControl "180+2"]
[Date "2023.07.25"]
[WhiteClock "0:00:53"]
[BlackClock "0:00:42"]
[Board "25"]

1. d4 {[%clk 0:03:00]}  Nf6 {[%clk 0:02:59]} 2. Nf3 {[%clk 0:03:01]}  e6 {[%clk 0:02:59]} 3. Bg5 {[%clk 0:03:01]}  d5 {[%clk 0:02:55]} 4. Nbd2 {[%clk 0:03:01]}  Be7 {[%clk 0:02:54]} 5. e3 {[%clk 0:03:00]}  O-O {[%clk 0:02:54]} 6. Bd3 {[%clk 0:03:00]}  h6 {[%clk 0:02:41]} 7. Bf4 {[%clk 0:02:57]}  c5 {[%clk 0:02:40]} 8. c3 {[%clk 0:02:57]}  Nh5 {[%clk 0:02:33]} 9. Be5 {[%clk 0:02:51]}  Nc6 {[%clk 0:02:32]} 10. g4 {[%clk 0:02:51]}  f6 {[%clk 0:02:14]} 11. Bg3 {[%clk 0:02:37]}  Nxg3 {[%clk 0:02:13]} 12. hxg3 {[%clk 0:02:38]}  e5 {[%clk 0:02:06]} 13. Bf5 {[%clk 0:02:28]}  Bxf5 {[%clk 0:01:59]} 14. gxf5 {[%clk 0:02:29]}  Qd7 {[%clk 0:02:00]} 15. g4 {[%clk 0:02:23]}  cxd4 {[%clk 0:01:50]} 16. cxd4 {[%clk 0:02:24]}  exd4 {[%clk 0:01:50]} 17. exd4 {[%clk 0:02:22]}  Rfe8 {[%clk 0:01:45]} 18. Kf1 {[%clk 0:02:21]}  Bb4 {[%clk 0:01:39]} 19. Nb3 {[%clk 0:02:16]}  Re4 {[%clk 0:01:38]} 20. a3 {[%clk 0:02:16]}  Bd6 {[%clk 0:01:34]} 21. Nbd2 {[%clk 0:02:05]}  Rf4 {[%clk 0:01:33]} 22. Qb3 {[%clk 0:01:59]}  Qf7 {[%clk 0:01:33]} 23. Rg1 {[%clk 0:01:54]}  Nxd4 {[%clk 0:01:31]} 24. Nxd4 {[%clk 0:01:54]}  Rxd4 {[%clk 0:01:32]} 25. Nf3 {[%clk 0:01:54]}  Rf4 {[%clk 0:01:32]} 26. Rd1 {[%clk 0:01:54]}  Rc8 {[%clk 0:01:25]} 27. Nd4 {[%clk 0:01:43]}  Bc5 {[%clk 0:01:13]} 28. Ne6 {[%clk 0:01:35]}  Rxf2+ {[%clk 0:01:09]} 29. Ke1 {[%clk 0:01:36]}  Bb6 {[%clk 0:01:03]} 30. Qxb6 {[%clk 0:01:22]}  axb6 {[%clk 0:01:04]} 31. Kxf2 {[%clk 0:01:22]}  Rc2+ {[%clk 0:01:04]} 32. Kg3 {[%clk 0:01:22]}  Qd7 {[%clk 0:00:58]} 33. Kh3 {[%clk 0:01:12]}  Qd6 {[%clk 0:00:50]} 34. Rg3 {[%clk 0:01:12]}  Kh7 {[%clk 0:00:45]} 35. b4 {[%clk 0:01:04]}  Qe5 {[%clk 0:00:43]} 36. Nf8+ {[%clk 0:01:02]}  Kg8 {[%clk 0:00:43]} 37. Ng6 {[%clk 0:01:03]}  Qe2 {[%clk 0:00:42]} 38. Rh1 {[%clk 0:00:53]}  d4 {[%clk 0:00:42]} 1-0


[Site "https://www.chess.com"]

[Event "Titled Tuesday Blitz July 25 Late 2023"]
[White "Zhigalko, Sergei"]
[Black "Sivakumar, Shaashwath"]
[WhiteFideId "13502956"]
[BlackFideId "30912156"]
[WhiteElo "2875"]
[BlackElo "2614"]
[Result "1-0"]
[Round "6"]
[TimeControl "180+2"]
[Date "2023.07.25"]
[WhiteClock "0:00:05"]
[BlackClock "0:00:27"]
[Board "27"]

1. e4 {[%clk 0:03:00]}  c5 {[%clk 0:02:59]} 2. Nf3 {[%clk 0:02:58]}  d6 {[%clk 0:03:00]} 3. d4 {[%clk 0:02:58]}  cxd4 {[%clk 0:03:01]} 4. Qxd4 {[%clk 0:02:59]}  Nc6 {[%clk 0:03:01]} 5. Bb5 {[%clk 0:02:58]}  Bd7 {[%clk 0:03:01]} 6. Bxc6 {[%clk 0:02:59]}  Bxc6 {[%clk 0:03:02]} 7. Nc3 {[%clk 0:02:59]}  Nf6 {[%clk 0:03:02]} 8. Bg5 {[%clk 0:02:59]}  e6 {[%clk 0:03:02]} 9. O-O-O {[%clk 0:02:59]}  Be7 {[%clk 0:03:02]} 10. Rhe1 {[%clk 0:02:59]}  O-O {[%clk 0:03:02]} 11. Kb1 {[%clk 0:02:59]}  Qc7 {[%clk 0:02:52]} 12. Qd2 {[%clk 0:02:59]}  Rfd8 {[%clk 0:02:51]} 13. Nd4 {[%clk 0:02:59]}  Rab8 {[%clk 0:02:50]} 14. f3 {[%clk 0:02:59]}  b5 {[%clk 0:02:50]} 15. g4 {[%clk 0:02:59]}  b4 {[%clk 0:02:50]} 16. Nce2 {[%clk 0:03:00]}  Be8 {[%clk 0:02:48]} 17. Ng3 {[%clk 0:03:00]}  a5 {[%clk 0:02:46]} 18. Rg1 {[%clk 0:02:58]}  h6 {[%clk 0:02:44]} 19. Be3 {[%clk 0:02:46]}  a4 {[%clk 0:02:38]} 20. g5 {[%clk 0:02:44]}  hxg5 {[%clk 0:02:36]} 21. Bxg5 {[%clk 0:02:45]}  b3 {[%clk 0:02:36]} 22. cxb3 {[%clk 0:02:42]}  axb3 {[%clk 0:02:35]} 23. a3 {[%clk 0:02:41]}  Rbc8 {[%clk 0:02:21]} 24. Bxf6 {[%clk 0:01:34]}  Bxf6 {[%clk 0:02:15]} 25. Nh5 {[%clk 0:01:34]}  Qe7 {[%clk 0:02:07]} 26. Nxg7 {[%clk 0:00:20]}  Bxg7 {[%clk 0:02:06]} 27. Rxg7+ {[%clk 0:00:19]}  Kxg7 {[%clk 0:02:04]} 28. Rg1+ {[%clk 0:00:20]}  Kh7 {[%clk 0:02:02]} 29. Qg2 {[%clk 0:00:11]}  Qf6 {[%clk 0:01:57]} 30. Qg8+ {[%clk 0:00:10]}  Kh6 {[%clk 0:01:57]} 31. Rg3 {[%clk 0:00:11]}  Rc5 {[%clk 0:01:31]} 32. Nf5+ {[%clk 0:00:04]}  Rxf5 {[%clk 0:01:31]} 33. exf5 {[%clk 0:00:04]}  Qxf5+ {[%clk 0:01:27]} 34. Ka1 {[%clk 0:00:05]}  Qg6 {[%clk 0:00:30]} 35. Qh8+ {[%clk 0:00:04]}  Qh7 {[%clk 0:00:30]} 36. Qf6+ {[%clk 0:00:04]}  Qg6 {[%clk 0:00:27]} 37. Rh3# {[%clk 0:00:05]} 1-0


[Site "https://www.chess.com"]

[Event "Titled Tuesday Blitz July 25 Late 2023"]
[White "Donchenko, Alexander"]
[Black "Deng, Henry"]
[WhiteFideId "24603295"]
[BlackFideId "30965454"]
[WhiteElo "2825"]
[BlackElo "2544"]
[Result "1-0"]
[Round "6"]
[TimeControl "180+2"]
[Date "2023.07.25"]
[WhiteClock "0:01:49"]
[BlackClock "0:00:42"]
[Board "29"]

1. Nf3 {[%clk 0:03:00]}  d5 {[%clk 0:02:59]} 2. e3 {[%clk 0:03:00]}  Nf6 {[%clk 0:02:57]} 3. c4 {[%clk 0:03:00]}  c6 {[%clk 0:02:56]} 4. Nc3 {[%clk 0:02:59]}  Nbd7 {[%clk 0:02:56]} 5. cxd5 {[%clk 0:02:59]}  cxd5 {[%clk 0:02:56]} 6. d4 {[%clk 0:03:00]}  e6 {[%clk 0:02:56]} 7. Bd3 {[%clk 0:03:00]}  Be7 {[%clk 0:02:51]} 8. O-O {[%clk 0:03:01]}  O-O {[%clk 0:02:52]} 9. Bd2 {[%clk 0:03:01]}  b6 {[%clk 0:02:52]} 10. Qe2 {[%clk 0:03:00]}  Bb7 {[%clk 0:02:52]} 11. a3 {[%clk 0:02:59]}  Nb8 {[%clk 0:02:49]} 12. Ne5 {[%clk 0:02:56]}  Nc6 {[%clk 0:02:48]} 13. f4 {[%clk 0:02:56]}  Rc8 {[%clk 0:02:42]} 14. Rac1 {[%clk 0:02:56]}  Nd7 {[%clk 0:02:34]} 15. Rf3 {[%clk 0:02:50]}  g6 {[%clk 0:02:33]} 16. Rh3 {[%clk 0:02:49]}  Kg7 {[%clk 0:02:30]} 17. Qg4 {[%clk 0:02:43]}  Nf6 {[%clk 0:02:23]} 18. Qh4 {[%clk 0:02:34]}  Nh5 {[%clk 0:02:09]} 19. Qf2 {[%clk 0:02:33]}  Nf6 {[%clk 0:02:05]} 20. Rf1 {[%clk 0:02:29]}  Nd7 {[%clk 0:01:57]} 21. Qg3 {[%clk 0:02:26]}  Na5 {[%clk 0:01:28]} 22. Rxh7+ {[%clk 0:02:12]}  Kxh7 {[%clk 0:01:26]} 23. Bxg6+ {[%clk 0:02:12]}  fxg6 {[%clk 0:01:11]} 24. Qxg6+ {[%clk 0:02:12]}  Kh8 {[%clk 0:01:11]} 25. Rf3 {[%clk 0:02:00]}  Nxe5 {[%clk 0:00:42]} 26. Qh5+ {[%clk 0:01:49]} 1-0


[Site "https://www.chess.com"]

[Event "Titled Tuesday Blitz July 25 Late 2023"]
[White "Alex_Sahakyan2006"]
[Black "Slovineanu, Viacheslav"]
[BlackFideId "13900510"]
[WhiteElo "2737"]
[BlackElo "2408"]
[Result "1-0"]
[Round "6"]
[TimeControl "180+2"]
[Date "2023.07.25"]
[WhiteClock "0:00:15"]
[BlackClock "0:00:00"]
[Board "30"]

1. d4 {[%clk 0:03:00]}  Nf6 {[%clk 0:02:59]} 2. c4 {[%clk 0:03:00]}  c5 {[%clk 0:02:59]} 3. dxc5 {[%clk 0:02:58]}  e5 {[%clk 0:02:55]} 4. Nc3 {[%clk 0:02:56]}  Bxc5 {[%clk 0:02:55]} 5. Nf3 {[%clk 0:02:54]}  Nc6 {[%clk 0:02:54]} 6. e3 {[%clk 0:02:49]}  O-O {[%clk 0:02:53]} 7. Bd3 {[%clk 0:02:45]}  Re8 {[%clk 0:02:45]} 8. Ng5 {[%clk 0:02:41]}  d5 {[%clk 0:02:06]} 9. cxd5 {[%clk 0:02:26]}  Nb4 {[%clk 0:02:06]} 10. Bb5 {[%clk 0:02:18]}  Bd7 {[%clk 0:01:56]} 11. Be2 {[%clk 0:02:11]}  Bf5 {[%clk 0:01:39]} 12. e4 {[%clk 0:02:10]}  Bg6 {[%clk 0:01:39]} 13. a3 {[%clk 0:02:10]}  Na6 {[%clk 0:01:31]} 14. Bd3 {[%clk 0:02:01]}  Bh5 {[%clk 0:01:00]} 15. Nf3 {[%clk 0:01:40]}  Bb6 {[%clk 0:00:50]} 16. O-O {[%clk 0:01:31]}  Nc5 {[%clk 0:00:50]} 17. Bb5 {[%clk 0:01:31]}  Re7 {[%clk 0:00:46]} 18. Re1 {[%clk 0:01:28]}  a6 {[%clk 0:00:45]} 19. Bf1 {[%clk 0:01:28]}  Ng4 {[%clk 0:00:29]} 20. Re2 {[%clk 0:01:20]}  f5 {[%clk 0:00:25]} 21. Bg5 {[%clk 0:01:17]}  fxe4 {[%clk 0:00:22]} 22. Bxe7 {[%clk 0:01:13]}  Qxe7 {[%clk 0:00:22]} 23. d6 {[%clk 0:01:14]}  Qd8 {[%clk 0:00:08]} 24. Nxe4 {[%clk 0:01:13]}  Nxe4 {[%clk 0:00:07]} 25. Qd5+ {[%clk 0:01:13]}  Kh8 {[%clk 0:00:06]} 26. Qxe4 {[%clk 0:01:14]}  Qxd6 {[%clk 0:00:05]} 27. h3 {[%clk 0:01:09]}  Nxf2 {[%clk 0:00:05]} 28. Rxf2 {[%clk 0:01:09]}  Qc5 {[%clk 0:00:05]} 29. Qc2 {[%clk 0:01:01]}  e4 {[%clk 0:00:04]} 30. Qxc5 {[%clk 0:00:52]}  Bxc5 {[%clk 0:00:04]} 31. Rc1 {[%clk 0:00:47]}  Bxf2+ {[%clk 0:00:04]} 32. Kxf2 {[%clk 0:00:47]}  exf3 {[%clk 0:00:04]} 33. gxf3 {[%clk 0:00:44]}  Rf8 {[%clk 0:00:05]} 34. Be2 {[%clk 0:00:43]}  h6 {[%clk 0:00:05]} 35. Rc7 {[%clk 0:00:43]}  Rb8 {[%clk 0:00:04]} 36. Bd3 {[%clk 0:00:40]}  Be8 {[%clk 0:00:04]} 37. Be4 {[%clk 0:00:40]}  Bc6 {[%clk 0:00:03]} 38. Bxc6 {[%clk 0:00:35]}  bxc6 {[%clk 0:00:03]} 39. b4 {[%clk 0:00:36]}  a5 {[%clk 0:00:04]} 40. bxa5 {[%clk 0:00:33]}  Rb3 {[%clk 0:00:04]} 41. Rxc6 {[%clk 0:00:30]}  Rxa3 {[%clk 0:00:04]} 42. a6 {[%clk 0:00:31]}  Kh7 {[%clk 0:00:04]} 43. h4 {[%clk 0:00:31]}  h5 {[%clk 0:00:04]} 44. Kg3 {[%clk 0:00:31]}  g6 {[%clk 0:00:04]} 45. Kf4 {[%clk 0:00:32]}  Ra4+ {[%clk 0:00:03]} 46. Kg5 {[%clk 0:00:32]}  Ra5+ {[%clk 0:00:04]} 47. Kf6 {[%clk 0:00:28]}  Rf5+ {[%clk 0:00:04]} 48. Ke6 {[%clk 0:00:23]}  Rxf3 {[%clk 0:00:04]} 49. Kd7 {[%clk 0:00:17]}  Ra3 {[%clk 0:00:05]} 50. Kc7 {[%clk 0:00:17]}  g5 {[%clk 0:00:05]} 51. hxg5 {[%clk 0:00:17]}  h4 {[%clk 0:00:05]} 52. Rh6+ {[%clk 0:00:18]}  Kg7 {[%clk 0:00:05]} 53. Kb7 {[%clk 0:00:18]}  Rb3+ {[%clk 0:00:04]} 54. Rb6 {[%clk 0:00:13]}  Ra3 {[%clk 0:00:03]} 55. a7 {[%clk 0:00:13]}  h3 {[%clk 0:00:03]} 56. a8=Q {[%clk 0:00:13]}  Rxa8 {[%clk 0:00:02]} 57. Kxa8 {[%clk 0:00:14]}  h2 {[%clk 0:00:00]} 58. Rh6 {[%clk 0:00:15]} 1-0


[Site "https://www.chess.com"]

[Event "Titled Tuesday Blitz July 25 Late 2023"]
[White "Leitao, Rafael"]
[Black "Gireman, Ja"]
[WhiteFideId "2101246"]
[BlackFideId "5043794"]
[WhiteElo "2798"]
[BlackElo "2577"]
[Result "1-0"]
[Round "6"]
[TimeControl "180+2"]
[Date "2023.07.25"]
[WhiteClock "0:00:25"]
[BlackClock "0:00:03"]
[Board "36"]

1. c4 {[%clk 0:03:00]}  Nf6 {[%clk 0:02:57]} 2. Nc3 {[%clk 0:03:00]}  e6 {[%clk 0:02:50]} 3. e4 {[%clk 0:02:58]}  d5 {[%clk 0:02:50]} 4. e5 {[%clk 0:02:59]}  Nfd7 {[%clk 0:02:49]} 5. cxd5 {[%clk 0:02:44]}  exd5 {[%clk 0:02:49]} 6. d4 {[%clk 0:02:43]}  Nb6 {[%clk 0:02:21]} 7. Be2 {[%clk 0:02:29]}  Be7 {[%clk 0:02:20]} 8. f4 {[%clk 0:02:24]}  c5 {[%clk 0:01:58]} 9. Nf3 {[%clk 0:02:19]}  Nc6 {[%clk 0:01:57]} 10. Be3 {[%clk 0:02:16]}  c4 {[%clk 0:01:32]} 11. O-O {[%clk 0:02:09]}  O-O {[%clk 0:01:32]} 12. Ne1 {[%clk 0:01:40]}  Bf5 {[%clk 0:01:29]} 13. g4 {[%clk 0:01:39]}  Be4 {[%clk 0:01:27]} 14. f5 {[%clk 0:01:31]}  Bg5 {[%clk 0:01:23]} 15. Qd2 {[%clk 0:01:26]}  Bxe3+ {[%clk 0:00:25]} 16. Qxe3 {[%clk 0:01:25]}  Re8 {[%clk 0:00:26]} 17. Rd1 {[%clk 0:01:22]}  Qh4 {[%clk 0:00:14]} 18. Nxe4 {[%clk 0:01:18]}  dxe4 {[%clk 0:00:15]} 19. Qxe4 {[%clk 0:01:16]}  Rad8 {[%clk 0:00:14]} 20. Nf3 {[%clk 0:01:15]}  Qe7 {[%clk 0:00:12]} 21. g5 {[%clk 0:01:08]}  Qb4 {[%clk 0:00:11]} 22. g6 {[%clk 0:01:02]}  fxg6 {[%clk 0:00:09]} 23. fxg6 {[%clk 0:01:02]}  h6 {[%clk 0:00:10]} 24. Kh1 {[%clk 0:00:48]}  Qxb2 {[%clk 0:00:10]} 25. Rb1 {[%clk 0:00:43]}  Qxa2 {[%clk 0:00:10]} 26. Ra1 {[%clk 0:00:42]}  Qb2 {[%clk 0:00:10]} 27. Rfb1 {[%clk 0:00:42]}  Qc3 {[%clk 0:00:09]} 28. Rc1 {[%clk 0:00:39]}  Qb2 {[%clk 0:00:09]} 29. Rab1 {[%clk 0:00:39]}  Qa3 {[%clk 0:00:09]} 30. Bxc4+ {[%clk 0:00:35]}  Nxc4 {[%clk 0:00:09]} 31. Rxc4 {[%clk 0:00:35]}  Qe7 {[%clk 0:00:08]} 32. Re1 {[%clk 0:00:34]}  Rf8 {[%clk 0:00:08]} 33. d5 {[%clk 0:00:33]}  Na5 {[%clk 0:00:08]} 34. Rd4 {[%clk 0:00:32]}  b6 {[%clk 0:00:09]} 35. d6 {[%clk 0:00:31]}  Qe6 {[%clk 0:00:09]} 36. Re3 {[%clk 0:00:27]}  Rd7 {[%clk 0:00:09]} 37. Qd5 {[%clk 0:00:27]}  Qxd5 {[%clk 0:00:09]} 38. Rxd5 {[%clk 0:00:28]}  Nb7 {[%clk 0:00:10]} 39. Nd4 {[%clk 0:00:26]}  Re8 {[%clk 0:00:10]} 40. Nf5 {[%clk 0:00:25]}  Kf8 {[%clk 0:00:03]} 41. e6 {[%clk 0:00:25]} 1-0


[Site "https://www.chess.com"]

[Event "Titled Tuesday Blitz July 25 Late 2023"]
[White "Panesar Vedant"]
[Black "Cesar Maestre, Bernardo"]
[WhiteFideId "35033018"]
[BlackFideId "24542547"]
[WhiteElo "2706"]
[BlackElo "2540"]
[Result "1-0"]
[Round "6"]
[TimeControl "180+2"]
[Date "2023.07.25"]
[WhiteClock "0:00:40"]
[BlackClock "0:00:00"]
[Board "39"]

1. d4 {[%clk 0:03:00]}  Nf6 {[%clk 0:02:58]} 2. c4 {[%clk 0:02:40]}  e6 {[%clk 0:02:57]} 3. Nf3 {[%clk 0:02:40]}  d5 {[%clk 0:02:56]} 4. g3 {[%clk 0:02:41]}  Bb4+ {[%clk 0:02:54]} 5. Bd2 {[%clk 0:02:41]}  Be7 {[%clk 0:02:53]} 6. Bg2 {[%clk 0:02:42]}  O-O {[%clk 0:02:53]} 7. O-O {[%clk 0:02:42]}  c6 {[%clk 0:02:53]} 8. Qc2 {[%clk 0:02:43]}  b6 {[%clk 0:02:45]} 9. Bf4 {[%clk 0:02:41]}  Nbd7 {[%clk 0:02:36]} 10. Nbd2 {[%clk 0:02:41]}  Bb7 {[%clk 0:02:34]} 11. e4 {[%clk 0:02:40]}  dxe4 {[%clk 0:02:28]} 12. Nxe4 {[%clk 0:02:38]}  c5 {[%clk 0:02:28]} 13. Nxf6+ {[%clk 0:02:36]}  Nxf6 {[%clk 0:02:28]} 14. Rad1 {[%clk 0:02:34]}  Qc8 {[%clk 0:02:23]} 15. b3 {[%clk 0:02:28]}  cxd4 {[%clk 0:02:21]} 16. Nxd4 {[%clk 0:02:29]}  Bxg2 {[%clk 0:02:21]} 17. Kxg2 {[%clk 0:02:29]}  Rd8 {[%clk 0:02:19]} 18. Qe2 {[%clk 0:02:28]}  Qb7+ {[%clk 0:02:10]} 19. Qf3 {[%clk 0:02:28]}  Qxf3+ {[%clk 0:02:07]} 20. Kxf3 {[%clk 0:02:29]}  Rac8 {[%clk 0:02:04]} 21. Nb5 {[%clk 0:01:58]}  a6 {[%clk 0:02:03]} 22. Na7 {[%clk 0:01:56]}  Rxd1 {[%clk 0:01:56]} 23. Rxd1 {[%clk 0:01:55]}  Rd8 {[%clk 0:01:56]} 24. Rxd8+ {[%clk 0:01:46]}  Bxd8 {[%clk 0:01:57]} 25. Nc6 {[%clk 0:01:45]}  e5 {[%clk 0:01:52]} 26. Bxe5 {[%clk 0:01:34]}  Nd7 {[%clk 0:01:52]} 27. Bxg7 {[%clk 0:01:24]}  Kxg7 {[%clk 0:01:44]} 28. Nxd8 {[%clk 0:01:22]}  Kf6 {[%clk 0:01:45]} 29. Nc6 {[%clk 0:01:17]}  Ke6 {[%clk 0:01:42]} 30. Nd4+ {[%clk 0:01:17]}  Kd6 {[%clk 0:01:42]} 31. Ke3 {[%clk 0:01:16]}  Kc5 {[%clk 0:01:42]} 32. a3 {[%clk 0:01:06]}  a5 {[%clk 0:01:36]} 33. f4 {[%clk 0:00:45]}  a4 {[%clk 0:01:37]} 34. Kd3 {[%clk 0:00:45]}  axb3 {[%clk 0:01:28]} 35. Nxb3+ {[%clk 0:00:46]}  Kd6 {[%clk 0:00:00]} 36. Nd2 {[%clk 0:00:40]} 1-0


[Site "https://www.chess.com"]